Cogmind - Beta 17 @@@ ROGUE MODE // 2026.07.23 @ 00:13:13 Player: Nephilimelody Result: Destroyed by as-11609 with Assembled Rifle Performance ------------- Evolutions (0) 0 Regions Visited (4) 800 Robots Destroyed (8) 40 Value Destroyed (152) 152 Prototype IDs (25) 500 Alien Tech Used (0) 0 Bonus (300) 300 TOTAL SCORE: 1792 Bonus ------- Aligned with FarCom 300 Cogmind --------- Core Integrity 0/250 Matter 265/300 Energy 121/125 System Corruption 1% Temperature Cool (2) Movement Treading (160) Location -9/Mines Parts ------- > --- POWER (1) -------- Light Ion Engine > --- PROPULSION (2) --- Light Treads Light Treads > --- UTILITY (2) ------ Small Storage Unit Experimental Sensor Array > --- WEAPON (2) ------- Medium Laser Latent Energy Streamer > --- INVENTORY (8) ---- Aluminum Leg Power Shielding Field Recycling Unit (0) Small Laser Small Laser Peak State ------------ > --- POWER ------------ Light Ion Engine > --- PROPULSION ------- Light Treads Light Treads > --- UTILITY ---------- Small Storage Unit Experimental Sensor Array > --- WEAPON ----------- Medium Laser Latent Energy Streamer > --- INVENTORY -------- Aluminum Leg Power Shielding Field Recycling Unit Small Laser Small Laser [Rating: 24] Favorites ----------- Power Light Ion Engine Engine Light Ion Engine Propulsion Light Treads Treads Light Treads Leg Aluminum Leg Utility Small Storage Unit Device Field Recycling Unit Storage Small Storage Unit Protection Power Shielding Weapon Medium Laser Energy Gun Medium Laser Energy Cannon Latent Energy Streamer Ballistic Gun Light Assault Rifle Build | -11 -10 -10 -10 -9 ------- Run | Yrd Mat Min Exi Min Slots Evolved . | . . . . . Power . | . . . . . Propulsion . | . . . . . Utility . | . . . . . Weapon . | . . . . . Parts Attached 19 | 7 10 . 1 1 Power 3 | 1 2 . . . Engine 3 | 1 2 . . . Core . | . . . . . Reactor . | . . . . . Propulsion 4 | 2 2 . . . Treads 2 | . 2 . . . Leg 2 | 2 . . . . Wheel . | . . . . . Hover . | . . . . . Flight . | . . . . . Utility 4 | 1 2 . . 1 Device 2 | . 1 . . 1 Storage 1 | 1 . . . . Processor . | . . . . . Hackware . | . . . . . Protection 1 | . 1 . . . Artifact . | . . . . . Weapon 8 | 3 4 . 1 . Energy Gun 5 | 2 3 . . . Energy Cannon 2 | . 1 . 1 . Ballistic Gun 1 | 1 . . . . Ballistic Cannon . | . . . . . Launcher . | . . . . . Special Weapon . | . . . . . Impact Weapon . | . . . . . Slashing Weapon . | . . . . . Piercing Weapon . | . . . . . Special Melee Weapon . | . . . . . Unidentified Prototypes 2 | . 1 . . 1 Parts Lost 8 | . 8 . . . Power 2 | . 2 . . . Propulsion 2 | . 2 . . . Utility . | . . . . . Weapon 4 | . 4 . . . Highest Loss Streak 5 | . 5 . . . To Critical Strikes . | . . . . . Average Backups 3 | 2 4 3 3 4 Power . | . . . . . Propulsion 1 | . 1 1 1 1 Utility . | . . 1 1 1 Weapon 1 | . 2 1 1 2 Tool/Special . | . . . . . Unused Backups 2 | . . . . 2 Power . | . . . . . Propulsion 1 | . . . . 1 Utility . | . . . . . Weapon 1 | . . . . 1 Tool/Special . | . . . . . Average Slot Usage (%) 98 | . 93 100 100 100 Engine 13 | . 12 14 14 14 Treads 22 | . 8 28 28 28 Leg 4 | . 17 . . . Device 3 | . 9 . . 8 Storage 14 | . 14 14 14 14 Protection 10 | . 3 14 14 5 Energy Gun 22 | . 18 28 24 14 Energy Cannon 4 | . 3 . 3 14 Ballistic Gun 1 | . 5 . . . Peak Build Rating 24 | 6 9 7 16 24 Average Rating 9 | 4 7 7 9 20 On Entrance 7 | . 6 7 7 16 Avg Prop Armor Cover (%) . | . . . . . Naked Turns . | . . . . . Heaviest Build 22 | 11 22 12 21 21 Greatest Support 40 | 20 40 40 40 40 Greatest Overweight (x) 5 | 1 5 . . . Average Overweight (x) . | . . . . . Largest Inventory Capacity 8 | 8 8 8 8 8 Average Capacity 7 | 7 8 8 8 8 Most Carried 7 | 4 7 3 4 5 Average Carried 3 | 2 4 3 3 4 Final Capacity 8 | 8 8 8 8 8 Final Carried 5 | 4 3 3 4 5 Class Distribution -------------------- 94% | Mutant 5% | Skirmisher Dominant Class ---------------- Mutant | -10/Materials Mutant | -10/Mines Mutant | -10/Exiles Skirmisher | -9/Mines Resources | -11 -10 -10 -10 -9 ----------- Run | Yrd Mat Min Exi Min Matter Collected 315 | 157 149 . 9 . Remotely . | . . . . . Salvage Created 196 | . 196 . . . Parts 6 | . 6 . . . Haulers Intercepted . | . . . . . Recyclers Shooed . | . . . . . Parts Field Recycled 8 | . 8 . . . Retrieved Matter 57 | . 57 . . . Parts Self-Destructed . | . . . . . Prevented . | . . . . . Parts Restored . | . . . . . Kills | -11 -10 -10 -10 -9 ------- Run | Yrd Mat Min Exi Min Combat Hostiles Destroyed 8 | . 8 . . . Guns 6 | . 6 . . . Cannons 2 | . 2 . . . Classes Destroyed 2 | . 2 . . . Swarmer 5 | . 5 . . . Grunt 3 | . 3 . . . Best Kill Streak 5 | . 5 . . . Combat Bots Only 5 | . 5 . . . Max Kills in Single Turn 1 | . 1 . . . Gunslinging . | . . . . . Exploded . | . . . . . Melee . | . . . . . Uniques/NPCs Destroyed . | . . . . . Combat | -11 -10 -10 -10 -9 -------- Run | Yrd Mat Min Exi Min Hostile Shots Fired 119 | . 117 . . 2 Missed 19 | . 18 . . 1 Hits 100 | . 99 . . 1 Projectile 100 | . 99 . . 1 Damage Taken 1009 | . 994 . . 15 Core 255 | . 240 . . 15 Absorbed by Shields . | . . . . . Redirected to Shielding 8 | . 8 . . . Core Remaining (%) 100 | 100 . . . . Volleys Fired 49 | . 42 . 7 . Largest 2 | . 2 . 2 . Hottest 105 | . 105 . 90 . Shots Fired 93 | . 78 . 15 . Gun 76 | . 61 . 15 . Cannon 17 | . 17 . . . Launcher . | . . . . . Special . | . . . . . Kinetic 12 | . 12 . . . Thermal 56 | . 41 . 15 . Explosive . | . . . . . Electromagnetic 25 | . 25 . . . Robot Hit Streak 8 | . 8 . . . Robot Miss Streak 4 | . 4 . 1 . Penetration Max . | . . . . . Secondary Targets . | . . . . . Shots Hit Robots 43 | . 43 . . . Core Hits 10 | . 10 . . . Critical Kills . | . . . . . Critical Parts Destroyed . | . . . . . Critical Strikes 3 | . 3 . . . Burn 2 | . 2 . . . Corrupt 1 | . 1 . . . Melee Attacks . | . . . . . Impact . | . . . . . Slashing . | . . . . . Piercing . | . . . . . Sneak Attacks . | . . . . . Combat Hostiles . | . . . . . Follow-up Attacks . | . . . . . Damage Inflicted 576 | . 576 . . . Guns 384 | . 384 . . . Cannons 174 | . 174 . . . Explosions . | . . . . . Melee . | . . . . . Ramming 18 | . 18 . . . Kinetic 44 | . 44 . . . Thermal 363 | . 363 . . . Explosive . | . . . . . Electromagnetic 151 | . 151 . . . Impact . | . . . . . Slashing . | . . . . . Piercing . | . . . . . Highest Corruption 1 | . 1 1 1 1 Average Corruption 1 | . 1 1 1 1 Corruption Purged . | . . . . . Corruption Blocked . | . . . . . Effects 15 | . 1 1 12 1 Message Errors 2 | . . . 2 . Matter Fused 3 | . . . 2 1 Heat Flow Errors 2 | . 1 . 1 . Energy Discharges 4 | . . 1 3 . Data Loss (minor) 2 | . . . 2 . Data Loss (major) 1 | . . . 1 . Misfires 1 | . . . 1 . Overload Shots . | . . . . . Overflow Damage . | . . . . . Projectiles . | . . . . . Explosions . | . . . . . Melee . | . . . . . Knockbacks 1 | . 1 . . . Impact 1 | . 1 . . . Kinetic . | . . . . . Secondary . | . . . . . Self-Inflicted Damage . | . . . . . Shots . | . . . . . Rammed 1 | . 1 . . . Targets Rammed 5 | . 5 . . . Kicked 4 | . 4 . . . Crushed . | . . . . . Highest Temperature 452 | . 452 . 210 . Average Temperature 142 | . 151 . 94 . Received Heat Transfer 240 | . 240 . . . Effects 5 | . 5 . . . Shutdowns 1 | . 1 . . . Energy Bleed 1 | . 1 . . . Interference 1 | . 1 . . . Damage (minor) 2 | . 2 . . . Siege Activations . | . . . . . Martial Activations . | . . . . . Shielding Activations . | . . . . . Robots Disrupted . | . . . . . Combat Hostiles . | . . . . . Robots Corrupted . | . . . . . Combat Hostiles . | . . . . . Parts Fried 1 | . 1 . . . Impact Corruptions . | . . . . . Robots Melted . | . . . . . Combat Hostiles . | . . . . . Parts Melted 1 | . 1 . . . Heat Transferred 1014 | . 1014 . . . Parts Sabotaged . | . . . . . Parts Stolen . | . . . . . Parts Stripped . | . . . . . Power Chain Reactions . | . . . . . Alert | -11 -10 -10 -10 -9 ------- Run | Yrd Mat Min Exi Min Maximum Alert Level . | . . . . . Low Security (%) 100 | 100 100 100 . 100 Level 1 . | . . . . . Level 2 . | . . . . . Level 3 . | . . . . . Level 4 . | . . . . . Level 5 . | . . . . . High Security . | . . . . . Max Security . | . . . . . Peak Influence 70 | . 70 13 . . Initial 13 | . . 13 . . Average 12 | . 19 5 . . Influence Increases 205 | . 205 . . . Destroy 0b10 Robot/C 160 | . 160 . . . Destroy Leader 30 | . 30 . . . Lose Combat Pursuer 15 | . 15 . . . Influence Decreases 205 | . 169 36 . . Entered New Map 23 | . . 23 . . Time Decay 137 | . 124 13 . . Lost Part 45 | . 45 . . . Squads Dispatched 2 | . 2 . . . Investigation . | . . . . . Extermination . | . . . . . Reinforcement 2 | . 2 . . . Assault . | . . . . . Garrison . | . . . . . Intercept . | . . . . . Searches Triggered . | . . . . . Construction Impeded . | . . . . . Haulers Reinforced . | . . . . . Active Scanning Responses . | . . . . . Cargo Convoy Interrupts . | . . . . . Stealth | -11 -10 -10 -10 -9 --------- Run | Yrd Mat Min Exi Min Distress Signals 1 | . . . . 1 Communications Jammed . | . . . . . Distress Signals . | . . . . . Times Spotted 20 | . 17 . . 3 Peak Tracking Total 5 | . 5 . . 2 Tactical Retreats 2 | . 1 . . 1 Traps | -11 -10 -10 -10 -9 ------- Run | Yrd Mat Min Exi Min Traps Triggered 2 | . 2 . . . Indirectly . | . . . . . Trap Hack Attempts . | . . . . . Triggered . | . . . . . Disarmed . | . . . . . Reprogrammed . | . . . . . Reused . | . . . . . Traps Extracted . | . . . . . Installed . | . . . . . Triggered . | . . . . . Machines | -11 -10 -10 -10 -9 ---------- Run | Yrd Mat Min Exi Min Machines Disabled . | . . . . . Max in Single Turn . | . . . . . Machines Repaired . | . . . . . Machines Dismantled . | . . . . . Machines Sabotaged . | . . . . . Overloaded Fab Kills . | . . . . . Hacking | -11 -10 -10 -10 -9 --------- Run | Yrd Mat Min Exi Min Machines Accessed 6 | . 1 . 5 . Terminals 1 | . 1 . . . Fabricators . | . . . . . Repair Stations . | . . . . . Recycling Units . | . . . . . Scanalyzers . | . . . . . Garrison Access . | . . . . . Total Hacks 52 | . 2 . 50 . Successful 50 | . . . 50 . Failed 2 | . 2 . . . Catastrophic 1 | . 1 . . . Database Lockouts . | . . . . . Manual 1 | . . . 1 . Terminals 2 | . 2 . . . Fabricators . | . . . . . Repair Stations . | . . . . . Recycling Units . | . . . . . Scanalyzers . | . . . . . Garrison Access . | . . . . . Terminal Hacks 50 | . . . 50 . Record 49 | . . . 49 . Proto ID Catalog 1 | . . . 1 . Fabricator Hacks . | . . . . . Repair Station Hacks . | . . . . . Recycling Unit Hacks . | . . . . . Scanalyzer . | . . . . . Garrison Access Hacks . | . . . . . Unauthorized Hacks . | . . . . . Terminals . | . . . . . Fabricators . | . . . . . Repair Stations . | . . . . . Recycling Units . | . . . . . Scanalyzers . | . . . . . Garrison Access . | . . . . . Data Cores Recovered . | . . . . . Used . | . . . . . Hacking Detections 1 | . 1 . . . Full Trace Events 1 | . 1 . . . Feedback Events . | . . . . . Feedback Blocked . | . . . . . Robot Schematics Acquired . | . . . . . Robots Built . | . . . . . Authchips . | . . . . . Time . | . . . . . Total Robot Build Rating . | . . . . . Part Schematics Acquired . | . . . . . Parts Built . | . . . . . Authchips . | . . . . . Time . | . . . . . Total Part Build Rating . | . . . . . Part Studies Acquired . | . . . . . Parts Repaired . | . . . . . Time . | . . . . . Parts Recycled . | . . . . . Recycled Matter . | . . . . . Retrieved Matter . | . . . . . Retrieved Components . | . . . . . Parts Scanalyzed . | . . . . . Part Schematics Acquired . | . . . . . Parts Damaged . | . . . . . Bothacking | -11 -10 -10 -10 -9 ------------ Run | Yrd Mat Min Exi Min Used RIF Installer . | . . . . . Robots Hacked . | . . . . . Non-combat . | . . . . . Combat . | . . . . . Robot Hacks Applied . | . . . . . Relay Couplers Released . | . . . . . Fabnet Peak Effective % . | . . . . . Robots Rewired . | . . . . . Allies Hacked . | . . . . . Hacks Repelled . | . . . . . Allies | -11 -10 -10 -10 -9 -------- Run | Yrd Mat Min Exi Min Total Allies . | . . . . . Largest Group . | . . . . . Highest-Rated Group . | . . . . . Highest-Rated Ally . | . . . . . Total Orders . | . . . . . Ally Attacks . | . . . . . Total Damage . | . . . . . Kills . | . . . . . Allies Corrupted . | . . . . . Allies Melted . | . . . . . Intel | -11 -10 -10 -10 -9 ------- Run | Yrd Mat Min Exi Min Active Infowar (turns) 82 | . . . . 82 Sensors 82 | . . . . 82 Robot Analysis Total . | . . . . . Derelict Logs Recovered . | . . . . . Drone Launches . | . . . . . Drone Recoveries . | . . . . . Exploration | -11 -10 -10 -10 -9 ------------- Run | Yrd Mat Min Exi Min Turns Passed 1739 | 63 443 52 1048 133 Spaces Moved 983 | 45 182 33 641 82 Core 10 | 7 3 . . . Treads 823 | . 67 33 641 82 Legs 150 | 38 112 . . . Wheels . | . . . . . Hover . | . . . . . Flight . | . . . . . Fastest Speed 50 | 50 120 160 160 160 Average Speed 155 | 110 147 160 160 160 Slowest Speed 300 | 120 300 160 160 160 Overloaded Moves . | . . . . . Propulsion Burnouts . | . . . . . Robots Hopped . | . . . . . Potential Cave-ins . | . . . . . Cave-ins Triggered . | . . . . . Exploration Rate (%) 33 | 3 42 11 93 18 Regions Visited 4 Branch Regions 3 Pre-discovered Areas 1 | . . . 1 . Known Exits Taken . | . . . . . Unknown Exits Taken 4 | 1 1 1 1 . Scrap Searched . | . . . . . Spaces Dug . | . . . . . Terrain Destroyed . | . . . . . Melee . | . . . . . Projectile . | . . . . . AOE . | . . . . . Terrain Rammed . | . . . . . Walls Destroyed . | . . . . . Machines Disabled . | . . . . . Actions | -11 -10 -10 -10 -9 --------- Run | Yrd Mat Min Exi Min Total 1098 | 55 278 32 649 84 Wait 30 | . 30 . . . Move 979 | 44 181 32 640 82 Hop . | . . . . . Pick Up 11 | 4 5 . 1 1 Fast Attach 10 | 6 4 . . . Attach 7 | . 7 . . . Detach 2 | . 2 . . . Swap 4 | 1 1 . 1 1 Drop 1 | . 1 . . . Fire 49 | . 42 . 7 . Melee . | . . . . . Ram . | . . . . . Kick 4 | . 4 . . . Crush 1 | . 1 . . . Escape Stasis . | . . . . . Rewire . | . . . . . Trap . | . . . . . Miscellaneous . | . . . . . Route ------- -11/Scrapyard -10/Materials -10/Mines -10/Exiles (discovered 2 exits: [*Min x2]) -9/Mines History --------- Turn | Location | Event 33 | -11/Scrapyard | Discovered new exit (range 15) 64 | -11/Scrapyard | Entered Materials 271 | -10/Materials | Lost 3 parts (1p2w) 312 | -10/Materials | Build established: Mutant 321 | -10/Materials | Core integrity fell below 50% 360 | -10/Materials | Core integrity fell below 20% 382 | -10/Materials | Lost 5 parts (1p2n2w) 499 | -10/Materials | Discovered new exit (range 6) 507 | -10/Materials | Entered Mines 512 | -10/Mines | Met a Derelict bent on vengeance 551 | -10/Mines | Deemed a non-threat by the Exiles lab entrance 552 | -10/Mines | Discovered new exit (range 5) 559 | -10/Mines | Entered Exiles 620 | -10/Exiles | Discovered new exit (range 15) 638 | -10/Exiles | Met 8R-AWN 665 | -10/Exiles | Met EX-HEX 726 | -10/Exiles | Met EX-DEC 764 | -10/Exiles | Learned location of Zion (-6) 851 | -10/Exiles | Discovered new exit (range 11) 1007 | -10/Exiles | Visited The Gauntlet 1246 | -10/Exiles | Met EX-BIN 1267 | -10/Exiles | Aligned with FarCom system 1268 | -10/Exiles | Given EX-Vault access code 1345 | -10/Exiles | Opened EX-Vault 1356 | -10/Exiles | Found Latent Energy Streamer 1391 | -10/Exiles | Warned to stay clear of 0b10 Research branches 1607 | -10/Exiles | Left Exiles lab with Latent Energy Streamer 1607 | -10/Exiles | Entered Mines 1629 | -9/Mines | Assembled infested the area 1634 | -9/Mines | Assisted by a Guerilla fighting off Assembled 1654 | -9/Mines | Found a damaged Exp. Sensor Array with a note attached 1657 | -9/Mines | Found Prototype Device 1658 | -9/Mines | Identified Exp. Sensor Array 1740 | -9/Mines | Destroyed by as-11609 with Assembled Rifle Last Messages --------------- keeps telling us we should avoid high-traffic areas because that's where patrols are more likely to show up, but that doesn't do us much good if we can't spot those areas until they're on top of us... With this we can! Deliver it to Megawrench for repairs then we'll never be afraid of an ambush while sneaking around Materials again, ha." Acquired Prototype Device. Identified Exp. Sensor Array. as-04478 suffers critical hit (Destroy). as-04478 destroyed. HV Slug penetrates Wall. K-01 Serf collects debris. U-05 Engineer lays Concrete. K-01 Serf collects debris. U-05 Engineer builds a Wall. T-07 Excavator is excavating. System corrupted: Matter fused (-6). T-07 Excavator is excavating. Map ----- +----------------------------------------------------+ | ?????????????????????????# #??????????????????? | | ?????????????????????????### #??????????????????? | | ???????????????????????????# #??????????????????? | | ???????????????????????????# #??????????????????? | | ???????????????????????????# #??????????????????? | | ???????????????????????????# #??????????????????? | | ???????????????????????????# #??????????????????? | | ???????????????????????????# #?????????????##???? | | ???????????????????????????# #??###???????? #???? | | ???????????????????????????# #?# ##??????? #???? | | ???????????????????????????# ## #####?## #???? | | ??????????????????????????## # ## ### ##??? | | ?????????????????????????## ## #??? | | ????????????????????????## ## #??? | | ???????????????????????## ### #??? | | ???????????????????????# ##?## #??? | | ???????????????????????# ###???### ##?? | | ???????????????????????# ###???????## #?? | | ???????????????????????## ##??????????## #?? | | ????????????????????????# #???????????## #?? | | ????????????????????????# #???######### ##?? | | ????????????????????????# ##### ###??? | | ????????????????????????# ##????? | | ????????????????????????# #### #######?????? | | ????????????????????????# #??# #???????????? | | ????????????????????????#@=#??## ##???????????? | | ????????????????????????# %#???## ##????????????? | | ???????????????????????? ;#???## #?????????????? | | ???????????????????????##%! ???# #?????????????? | | ??????????????????????? #%%=# ?? #?????????????? | | ??????????????????????# ] ? #?????????????? | | ??????????????????????#? % ####?????????????? | | ???????????????????????? % ? ???????????????? | | ???????????????????????? a ??????????????? | | ??????????????????????? %* % %?????????????? | | ??????????????????????? !% ;?%%% ????????????? | | ????????????????????????;### ; ?[ ????????????? | | ????????????????????????#??? # ????????????????? | | ????????????????????????????# ;?????????????????? | | ?????????????????????????????#???????????????????? | | ?????????????????????????????????????????????????? | | ?????????????????????????????????????????????????? | | ?????????????????????????????????????????????????? | | ?????????????????????????????????????????????????? | | ?????????????????????????????????????????????????? | | ?????????????????????????????????????????????????? | | ?????????????????????????????????????????????????? | | ?????????????????????????????????????????????????? | | ?????????????????????????????????????????????????? | | ?????????????????????????????????????????????????? | +----------------------------------------------------+ Best States ------------- Heat Dissipation 25 Energy Generation 10 Energy Capacity 125 Matter Stores 300 Matter Capacity 300 Sight Range 16 Robot Scan Range 20 Terrain Scan Density 10 Power Shielding 33 Evasion (%) 55 Recoil Reduction 2 Item Schematics ----------------- None Robot Schematics ------------------ None Fabricated ------------ Nothing Repaired ---------- Nothing Studied --------- None Alien Tech Used ----------------- None Achievements -------------- Librarian Sixth Sense Challenges ------------ None Game ------ Seed NeutrinoAuthchipDissipator Manual? 0 Play Time 00:29:54 Cumulative 4.6 hours Start 2026.07.22 @ 17:16:05 End 2026.07.23 @ 00:13:13 Sessions 3 Manual Loads 0 Difficulty Rogue Special Mode None Game No. 9 Rogue 9 Adventurer 0 Explorer 0 Win Type - Total 0 Types 0/0/0/0/0/0/0/0/0/0 Lore% 8 Gallery% 7 Achievement% 9 Wizard Run 0 Options --------- Layout 1 ASCII 0 Keyboard 0 Movement Numpad Keybinds 0 Fullscreen 1 Font 24/Smallcaps Map View 50x35 Zoom Use 0% Tactical HUD 0 Map Filters NONE Filters NONE Steam 1 RUN: d1c5bcd3-6f1d-4363-a42e-180bf09f2add